[Event "Chess Festival Groningen 2023 | A"]
[Site "Groningen, Netherlands"]
[Date "2023.12.23"]
[Round "3.15"]
[White "Aashman, Gupta"]
[Black "Stremavicius, Pijus"]
[Result "0-1"]
[TimeControl "90min/40moves + 30min + 30sec/move"]
[WhiteFideId "45022500"]
[WhiteElo "2235"]
[BlackElo "2367"]

1. d4 {[%clk 01:30:07]} {[%emt 00:00:52]} d5 {[%clk 01:30:46]} {[%emt
00:00:15]} 2. c4 {[%clk 01:30:17]} {[%emt 00:00:20]} e6 {[%clk 01:31:10]}
{[%emt 00:00:06]} 3. Nc3 {[%clk 01:30:17]} {[%emt 00:00:29]} Nf6 {[%clk
01:31:33]} {[%emt 00:00:08]} 4. cxd5 {[%clk 01:29:47]} {[%emt 00:01:00]} exd5
{[%clk 01:31:57]} {[%emt 00:00:07]} 5. Bg5 {[%clk 01:30:11]} {[%emt 00:00:05]}
c6 {[%clk 01:32:25]} {[%emt 00:00:03]} 6. e3 {[%clk 01:29:34]} {[%emt
00:01:06]} h6 {[%clk 01:32:48]} {[%emt 00:00:07]} 7. Bh4 {[%clk 01:29:58]}
{[%emt 00:00:05]} Be7 {[%clk 01:33:15]} {[%emt 00:00:04]} 8. Qc2 {[%clk
01:28:17]} {[%emt 00:02:10]} O-O {[%clk 01:33:36]} {[%emt 00:00:10]} 9. Bd3
{[%clk 01:28:44]} {[%emt 00:00:03]} Re8 {[%clk 01:34:02]} {[%emt 00:00:04]} 10.
Nge2 {[%clk 01:28:05]} {[%emt 00:01:08]} Nbd7 {[%clk 01:34:26]} {[%emt
00:00:07]} 11. O-O {[%clk 01:28:11]} {[%emt 00:00:23]} a5 {[%clk 01:34:54]}
{[%emt 00:00:04]} 12. Rac1 {[%clk 01:14:31]} {[%emt 00:14:08]} Nh5 {[%clk
01:32:02]} {[%emt 00:03:23]} 13. Bxe7 {[%clk 01:13:29]} {[%emt 00:01:32]} Qxe7
{[%clk 01:32:27]} {[%emt 00:00:03]} 14. Na4 {[%clk 01:06:13]} {[%emt 00:07:48]}
g6 {[%clk 01:32:19]} {[%emt 00:00:38]} 15. Kh1 {[%clk 00:53:45]} {[%emt
00:12:57]} Ng7 {[%clk 01:22:20]} {[%emt 00:10:30]} 16. Rce1 {[%clk 00:43:48]}
{[%emt 00:10:26]} Nf6 {[%clk 01:17:20]} {[%emt 00:05:29]} 17. Nb6 {[%clk
00:38:59]} {[%emt 00:05:21]} Rb8 {[%clk 01:17:18]} {[%emt 00:00:33]} 18. Nxc8
{[%clk 00:39:11]} {[%emt 00:00:18]} Rbxc8 {[%clk 01:17:44]} {[%emt 00:00:04]}
19. Ng1 {[%clk 00:37:44]} {[%emt 00:01:56]} b6 {[%clk 01:15:30]} {[%emt
00:02:45]} 20. Nf3 {[%clk 00:27:30]} {[%emt 00:10:43]} c5 {[%clk 01:15:48]}
{[%emt 00:00:12]} 21. Qb1 {[%clk 00:26:31]} {[%emt 00:01:28]} Ne4 {[%clk
01:08:54]} {[%emt 00:07:24]} 22. Rd1 {[%clk 00:25:24]} {[%emt 00:01:37]} Nf5
{[%clk 01:06:11]} {[%emt 00:03:13]} 23. dxc5 {[%clk 00:18:26]} {[%emt
00:07:29]} bxc5 {[%clk 01:05:49]} {[%emt 00:00:52]} 24. Ba6 {[%clk 00:17:07]}
{[%emt 00:01:49]} Rcd8 {[%clk 01:05:04]} {[%emt 00:01:16]} 25. Bb5 {[%clk
00:17:19]} {[%emt 00:00:17]} Rf8 {[%clk 01:05:30]} {[%emt 00:00:05]} 26. Nd2
{[%clk 00:16:26]} {[%emt 00:01:23]} Nf6 {[%clk 00:59:06]} {[%emt 00:06:54]} 27.
h3 {[%clk 00:10:47]} {[%emt 00:06:09]} Nd6 {[%clk 00:55:50]} {[%emt 00:03:46]}
28. Bd3 {[%clk 00:10:54]} {[%emt 00:00:22]} Rb8 {[%clk 00:56:10]} {[%emt
00:00:11]} 29. Qa1 {[%clk 00:08:04]} {[%emt 00:03:20]} a4 {[%clk 00:56:10]}
{[%emt 00:00:30]} 30. b3 {[%clk 00:07:43]} {[%emt 00:00:50]} Rfc8 {[%clk
00:54:34]} {[%emt 00:02:06]} 31. Rc1 {[%clk 00:06:36]} {[%emt 00:01:38]} Qe6
{[%clk 00:41:44]} {[%emt 00:13:21]} 32. Rfd1 {[%clk 00:05:38]} {[%emt
00:01:27]} Nd7 {[%clk 00:32:18]} {[%emt 00:09:55]} 33. Be2 {[%clk 00:03:13]}
{[%emt 00:02:55]} axb3 {[%clk 00:31:49]} {[%emt 00:01:00]} 34. axb3 {[%clk
00:03:41]} {[%emt 00:00:02]} Rb4 {[%clk 00:31:54]} {[%emt 00:00:25]} 35. Qa6
{[%clk 00:02:27]} {[%emt 00:01:43]} Rb6 {[%clk 00:31:52]} {[%emt 00:00:32]} 36.
Qa4 {[%clk 00:02:17]} {[%emt 00:00:40]} h5 {[%clk 00:30:16]} {[%emt 00:02:06]}
37. Bf3 {[%clk 00:01:44]} {[%emt 00:01:02]} Nf6 {[%clk 00:28:00]} {[%emt
00:02:47]} 38. Qa5 {[%clk 00:01:08]} {[%emt 00:01:06]} Rbc6 {[%clk 00:26:38]}
{[%emt 00:01:52]} 39. Qa4 {[%clk 00:00:43]} {[%emt 00:00:56]} g5 {[%clk
00:26:45]} {[%emt 00:00:23]} 40. g4 {[%clk 00:00:33]} {[%emt 00:00:39]} Nde4
{[%clk 00:21:57]} {[%emt 00:05:18]} 41. Kg2 {[%clk 00:16:43]} {[%emt 00:14:20]}
hxg4 {[%clk 00:50:44]} {[%emt 00:01:43]} 42. hxg4 {[%clk 00:16:25]} {[%emt
00:00:48]} Ra6 {[%clk 00:49:46]} {[%emt 00:01:28]} 43. Qb5 {[%clk 00:15:35]}
{[%emt 00:01:19]} Ra2 {[%clk 00:50:08]} {[%emt 00:00:09]} 44. Nxe4 {[%clk
00:01:07]} {[%emt 00:14:58]} dxe4 {[%clk 00:49:23]} {[%emt 00:01:15]} 45. Be2
{[%clk 00:01:36]} {[%emt 00:00:01]} Nxg4 {[%clk 00:48:38]} {[%emt 00:01:15]} 46.
Rh1 {[%clk 00:01:45]} {[%emt 00:00:20]} Qf5 {[%clk 00:48:27]} {[%emt 00:00:42]}
47. Rcf1 {[%clk 00:02:00]} {[%emt 00:00:15]} Nxe3+ {[%clk 00:48:47]} {[%emt
00:00:11]} 48. fxe3 {[%clk 00:02:00]} {[%emt 00:00:30]} Qg4+ {[%clk 00:49:16]}
{[%emt 00:00:01]} 49. Kf2 {[%clk 00:02:24]} {[%emt 00:00:06]} Qf3+ {[%clk
00:47:56]} {[%emt 00:01:50]} 50. Ke1 {[%clk 00:02:49]} {[%emt 00:00:05]} Qxe3
{[%clk 00:47:55]} {[%emt 00:00:32]} 0-1

[Event "Chess Festival Groningen 2023 | A"]
[Site "Groningen, Netherlands"]
[Date "2023.12.23"]
[Round "3.16"]
[White "Labruyere, Roger"]
[Black "Sanket, Chakravarty"]
[Result "1/2-1/2"]
[TimeControl "90min/40moves + 30min + 30sec/move"]
[BlackFideId "25032038"]
[WhiteElo "2208"]
[BlackElo "2361"]

1. e4 {[%clk 01:30:58]} {[%emt 00:00:01]} c5 {[%clk 01:28:47]} {[%emt
00:02:14]} 2. Nf3 {[%clk 01:31:22]} {[%emt 00:00:06]} e6 {[%clk 01:29:04]}
{[%emt 00:00:12]} 3. c3 {[%clk 01:31:48]} {[%emt 00:00:05]} d5 {[%clk
01:29:06]} {[%emt 00:00:28]} 4. exd5 {[%clk 01:32:10]} {[%emt 00:00:08]} exd5
{[%clk 01:29:24]} {[%emt 00:00:12]} 5. d4 {[%clk 01:32:32]} {[%emt 00:00:09]}
Nc6 {[%clk 01:29:10]} {[%emt 00:00:43]} 6. Bb5 {[%clk 01:32:40]} {[%emt
00:00:22]} Bd6 {[%clk 01:28:54]} {[%emt 00:00:46]} 7. O-O {[%clk 01:27:27]}
{[%emt 00:05:43]} Nf6 {[%clk 01:28:23]} {[%emt 00:01:01]} 8. Re1+ {[%clk
01:27:04]} {[%emt 00:00:55]} Be6 {[%clk 01:28:21]} {[%emt 00:00:31]} 9. Be3
{[%clk 01:17:18]} {[%emt 00:10:16]} Qb6 {[%clk 01:20:58]} {[%emt 00:07:52]} 10.
Bxc6+ {[%clk 01:14:40]} {[%emt 00:03:08]} bxc6 {[%clk 01:18:57]} {[%emt
00:02:31]} 11. dxc5 {[%clk 01:14:43]} {[%emt 00:00:27]} Bxc5 {[%clk 01:19:16]}
{[%emt 00:00:11]} 12. Bxc5 {[%clk 01:15:07]} {[%emt 00:00:06]} Qxc5 {[%clk
01:19:40]} {[%emt 00:00:05]} 13. Nd4 {[%clk 01:15:23]} {[%emt 00:00:13]} O-O
{[%clk 01:19:40]} {[%emt 00:00:30]} 14. Nd2 {[%clk 01:14:01]} {[%emt 00:01:53]}
Bd7 {[%clk 01:19:20]} {[%emt 00:00:49]} 15. Qf3 {[%clk 01:10:37]} {[%emt
00:03:54]} a5 {[%clk 01:16:40]} {[%emt 00:03:10]} 16. Qf4 {[%clk 00:57:18]}
{[%emt 00:13:49]} a4 {[%clk 01:14:05]} {[%emt 00:03:05]} 17. Rac1 {[%clk
00:55:42]} {[%emt 00:02:07]} Qb6 {[%clk 01:10:38]} {[%emt 00:03:57]} 18. Rb1
{[%clk 00:50:47]} {[%emt 00:05:25]} Rfe8 {[%clk 01:06:32]} {[%emt 00:04:36]} 19.
Rxe8+ {[%clk 00:50:11]} {[%emt 00:01:06]} Rxe8 {[%clk 01:06:52]} {[%emt
00:00:10]} 20. Qd6 {[%clk 00:45:03]} {[%emt 00:05:39]} Qa6 {[%clk 00:56:25]}
{[%emt 00:10:56]} 21. N2f3 {[%clk 00:43:18]} {[%emt 00:02:15]} Qc4 {[%clk
00:47:39]} {[%emt 00:09:16]} 22. Ne5 {[%clk 00:36:56]} {[%emt 00:06:53]} Qxa2
{[%clk 00:47:37]} {[%emt 00:00:31]} 23. Rf1 {[%clk 00:37:23]} {[%emt 00:00:04]}
Be6 {[%clk 00:45:31]} {[%emt 00:02:36]} 24. Ndxc6 {[%clk 00:32:30]} {[%emt
00:05:23]} h6 {[%clk 00:42:17]} {[%emt 00:03:44]} 25. Qb4 {[%clk 00:31:21]}
{[%emt 00:01:39]} Ne4 {[%clk 00:39:47]} {[%emt 00:02:59]} 26. Nd4 {[%clk
00:28:22]} {[%emt 00:03:29]} Bc8 {[%clk 00:37:19]} {[%emt 00:02:58]} 27. Nef3
{[%clk 00:15:23]} {[%emt 00:13:29]} Ba6 {[%clk 00:33:39]} {[%emt 00:04:09]} 28.
Re1 {[%clk 00:14:22]} {[%emt 00:01:32]} Ra8 {[%clk 00:26:40]} {[%emt 00:07:29]}
29. Nf5 {[%clk 00:09:35]} {[%emt 00:05:17]} Qc4 {[%clk 00:10:25]} {[%emt
00:16:45]} 30. Ne7+ {[%clk 00:09:06]} {[%emt 00:00:58]} Kh7 {[%clk 00:10:16]}
{[%emt 00:00:39]} 31. Nxd5 {[%clk 00:09:07]} {[%emt 00:00:29]} Qxd5 {[%clk
00:10:42]} {[%emt 00:00:04]} 32. Rxe4 {[%clk 00:07:46]} {[%emt 00:01:51]} Rb8
{[%clk 00:09:40]} {[%emt 00:01:32]} 33. Qxa4 {[%clk 00:06:02]} {[%emt
00:02:15]} Rxb2 {[%clk 00:10:05]} {[%emt 00:00:05]} 34. Re1 {[%clk 00:06:11]}
{[%emt 00:00:22]} Bb7 {[%clk 00:08:59]} {[%emt 00:01:35]} 35. Qa1 {[%clk
00:04:49]} {[%emt 00:01:52]} Qb3 {[%clk 00:08:06]} {[%emt 00:01:23]} 36. Qa5
{[%clk 00:03:38]} {[%emt 00:01:41]} Qc2 {[%clk 00:07:56]} {[%emt 00:00:41]} 37.
Qc5 {[%clk 00:02:44]} {[%emt 00:01:23]} Rb3 {[%clk 00:05:42]} {[%emt 00:02:44]}
38. Nd4 {[%clk 00:02:18]} {[%emt 00:00:56]} Qe4 {[%clk 00:05:39]} {[%emt
00:00:33]} 39. Nf3 {[%clk 00:01:43]} {[%emt 00:01:04]} Qc2 {[%clk 00:04:15]}
{[%emt 00:01:54]} 40. Nd4 {[%clk 00:01:58]} {[%emt 00:00:15]} Qe4 {[%clk
00:04:42]} {[%emt 00:00:03]} 41. Nf3 {[%clk 00:02:24]} {[%emt 00:00:05]} Qd3
{[%clk 00:03:58]} {[%emt 00:01:11]} 42. Qe3 {[%clk 00:27:55]} {[%emt 00:05:01]}
Qxc3 {[%clk 00:32:35]} {[%emt 00:01:53]} 43. Qxc3 {[%clk 00:27:17]} {[%emt
00:01:08]} Rxc3 {[%clk 00:33:00]} {[%emt 00:00:06]} 44. Ne5 {[%clk 00:27:43]}
{[%emt 00:00:03]} f6 {[%clk 00:33:07]} {[%emt 00:00:24]} 45. Ng4 {[%clk
00:28:08]} {[%emt 00:00:05]} h5 {[%clk 00:33:16]} {[%emt 00:00:21]} 46. Ne3
{[%clk 00:28:37]} {[%emt 00:00:01]} g5 {[%clk 00:33:14]} {[%emt 00:00:32]} 47.
h3 {[%clk 00:28:45]} {[%emt 00:00:22]} Kg6 {[%clk 00:33:34]} {[%emt 00:00:09]}
48. Rb1 {[%clk 00:29:04]} {[%emt 00:00:11]} 1/2-1/2

[Event "Chess Festival Groningen 2023 | A"]
[Site "Groningen, Netherlands"]
[Date "2023.12.23"]
[Round "3.17"]
[White "Albers, Sasa"]
[Black "Van Foreest, Machteld"]
[Result "1-0"]
[TimeControl "90min/40moves + 30min + 30sec/move"]
[WhiteElo "2192"]
[BlackElo "2344"]

1. e4 {[%clk 01:30:58]} {[%emt 00:00:01]} c5 {[%clk 01:30:43]} {[%emt
00:00:18]} 2. Nf3 {[%clk 01:31:24]} {[%emt 00:00:04]} e6 {[%clk 01:30:46]}
{[%emt 00:00:26]} 3. d4 {[%clk 01:31:10]} {[%emt 00:00:43]} cxd4 {[%clk
01:31:12]} {[%emt 00:00:04]} 4. Nxd4 {[%clk 01:31:35]} {[%emt 00:00:04]} Nc6
{[%clk 01:31:41]} {[%emt 00:00:02]} 5. Nc3 {[%clk 01:30:26]} {[%emt 00:01:39]}
Nf6 {[%clk 01:27:24]} {[%emt 00:04:47]} 6. Nxc6 {[%clk 01:29:30]} {[%emt
00:01:26]} bxc6 {[%clk 01:27:49]} {[%emt 00:00:04]} 7. e5 {[%clk 01:29:47]}
{[%emt 00:00:12]} Nd5 {[%clk 01:28:15]} {[%emt 00:00:04]} 8. Ne4 {[%clk
01:30:02]} {[%emt 00:00:15]} Qc7 {[%clk 01:28:39]} {[%emt 00:00:07]} 9. f4
{[%clk 01:30:25]} {[%emt 00:00:06]} Qb6 {[%clk 01:28:25]} {[%emt 00:00:45]} 10.
a3 {[%clk 01:30:33]} {[%emt 00:00:23]} Ba6 {[%clk 01:20:43]} {[%emt 00:08:12]}
11. Qd2 {[%clk 01:24:05]} {[%emt 00:06:57]} Bxf1 {[%clk 01:18:46]} {[%emt
00:02:26]} 12. Rxf1 {[%clk 01:24:34]} {[%emt 00:00:02]} Qa6 {[%clk 01:10:24]}
{[%emt 00:08:52]} 13. b3 {[%clk 01:13:29]} {[%emt 00:11:34]} Rb8 {[%clk
00:48:15]} {[%emt 00:22:39]} 14. c4 {[%clk 00:51:56]} {[%emt 00:22:03]} Rxb3
{[%clk 00:38:08]} {[%emt 00:10:37]} 15. cxd5 {[%clk 00:52:19]} {[%emt
00:00:07]} exd5 {[%clk 00:38:07]} {[%emt 00:00:31]} 16. Qc2 {[%clk 00:39:55]}
{[%emt 00:12:54]} Qb5 {[%clk 00:35:05]} {[%emt 00:03:33]} 17. Ng5 {[%clk
00:34:55]} {[%emt 00:05:30]} d4 {[%clk 00:29:41]} {[%emt 00:05:54]} 18. a4
{[%clk 00:27:55]} {[%emt 00:07:31]} Qd5 {[%clk 00:30:05]} {[%emt 00:00:05]} 19.
Rb1 {[%clk 00:27:54]} {[%emt 00:00:31]} Bb4+ {[%clk 00:28:52]} {[%emt
00:01:43]} 20. Kf2 {[%clk 00:28:18]} {[%emt 00:00:05]} Rc3 {[%clk 00:16:43]}
{[%emt 00:12:39]} 21. Qe4 {[%clk 00:27:37]} {[%emt 00:01:11]} Qc4 {[%clk
00:15:42]} {[%emt 00:01:32]} 22. Kg1 {[%clk 00:27:40]} {[%emt 00:00:26]} Bc5
{[%clk 00:11:28]} {[%emt 00:04:45]} 23. Bd2 {[%clk 00:15:30]} {[%emt 00:12:40]}
Rc2 {[%clk 00:06:07]} {[%emt 00:05:51]} 24. Bb4 {[%clk 00:11:23]} {[%emt
00:04:37]} d3+ {[%clk 00:04:45]} {[%emt 00:01:52]} 25. Bxc5 {[%clk 00:11:33]}
{[%emt 00:00:19]} Qxc5+ {[%clk 00:05:13]} {[%emt 00:00:02]} 26. Kh1 {[%clk
00:11:54]} {[%emt 00:00:09]} d2 {[%clk 00:05:31]} {[%emt 00:00:13]} 27. Qd3
{[%clk 00:10:20]} {[%emt 00:02:03]} Rc4 {[%clk 00:02:28]} {[%emt 00:03:34]} 28.
Ne4 {[%clk 00:09:17]} {[%emt 00:01:32]} Qd4 {[%clk 00:02:28]} {[%emt 00:00:31]}
29. Qxc4 {[%clk 00:09:40]} {[%emt 00:00:07]} 1-0

[Event "Chess Festival Groningen 2023 | A"]
[Site "Groningen, Netherlands"]
[Date "2023.12.23"]
[Round "3.18"]
[White "Palchuk, Andrii"]
[Black "Nicolai, Amir"]
[Result "1-0"]
[TimeControl "90min/40moves + 30min + 30sec/move"]
[WhiteElo "2328"]
[BlackElo "2156"]

1. d4 {[%clk 01:14:26]} {[%emt 00:16:33]} d5 {[%clk 01:30:49]} {[%emt
00:00:11]} 2. c4 {[%clk 01:14:27]} {[%emt 00:00:29]} c6 {[%clk 01:30:56]}
{[%emt 00:00:24]} 3. Nf3 {[%clk 01:14:42]} {[%emt 00:00:16]} Nf6 {[%clk
01:31:17]} {[%emt 00:00:08]} 4. Qc2 {[%clk 01:11:17]} {[%emt 00:03:55]} dxc4
{[%clk 01:31:40]} {[%emt 00:00:08]} 5. Qxc4 {[%clk 01:11:42]} {[%emt 00:00:05]}
Bf5 {[%clk 01:32:02]} {[%emt 00:00:08]} 6. g3 {[%clk 01:11:27]} {[%emt
00:00:46]} e6 {[%clk 01:32:13]} {[%emt 00:00:11]} 7. Bg2 {[%clk 01:11:20]}
{[%emt 00:00:43]} Be7 {[%clk 01:32:31]} {[%emt 00:00:12]} 8. O-O {[%clk
01:11:32]} {[%emt 00:00:19]} O-O {[%clk 01:32:41]} {[%emt 00:00:19]} 9. e3
{[%clk 01:10:48]} {[%emt 00:01:16]} Nbd7 {[%clk 01:32:48]} {[%emt 00:00:22]} 10.
Qe2 {[%clk 01:07:23]} {[%emt 00:03:54]} Rc8 {[%clk 01:31:48]} {[%emt 00:01:31]}
11. Nc3 {[%clk 01:05:50]} {[%emt 00:02:03]} b5 {[%clk 01:30:28]} {[%emt
00:01:49]} 12. a3 {[%clk 00:58:40]} {[%emt 00:07:40]} a5 {[%clk 01:25:21]}
{[%emt 00:05:37]} 13. Bd2 {[%clk 00:47:57]} {[%emt 00:11:14]} b4 {[%clk
01:23:29]} {[%emt 00:02:22]} 14. axb4 {[%clk 00:48:02]} {[%emt 00:00:26]} axb4
{[%clk 01:23:55]} {[%emt 00:00:03]} 15. Na4 {[%clk 00:48:19]} {[%emt 00:00:13]}
Be4 {[%clk 01:13:47]} {[%emt 00:10:38]} 16. Rfc1 {[%clk 00:46:47]} {[%emt
00:02:03]} Qc7 {[%clk 01:04:12]} {[%emt 00:10:04]} 17. Nc5 {[%clk 00:40:37]}
{[%emt 00:06:41]} Nxc5 {[%clk 00:59:13]} {[%emt 00:05:29]} 18. dxc5 {[%clk
00:40:58]} {[%emt 00:00:09]} Rb8 {[%clk 00:56:47]} {[%emt 00:02:56]} 19. Ra4
{[%clk 00:29:14]} {[%emt 00:12:15]} b3 {[%clk 00:40:41]} {[%emt 00:16:35]} 20.
Nd4 {[%clk 00:27:43]} {[%emt 00:02:00]} Bxg2 {[%clk 00:38:32]} {[%emt
00:02:40]} 21. Kxg2 {[%clk 00:28:08]} {[%emt 00:00:06]} Nd7 {[%clk 00:36:18]}
{[%emt 00:02:44]} 22. Bb4 {[%clk 00:20:14]} {[%emt 00:08:25]} Bf6 {[%clk
00:32:33]} {[%emt 00:04:14]} 23. Nxb3 {[%clk 00:14:33]} {[%emt 00:06:12]} Qe5
{[%clk 00:26:43]} {[%emt 00:06:19]} 24. Nd4 {[%clk 00:13:21]} {[%emt 00:01:43]}
Qd5+ {[%clk 00:16:09]} {[%emt 00:11:04]} 25. Qf3 {[%clk 00:13:12]} {[%emt
00:00:39]} Bxd4 {[%clk 00:15:25]} {[%emt 00:01:14]} 26. Qxd5 {[%clk 00:13:19]}
{[%emt 00:00:23]} exd5 {[%clk 00:15:52]} {[%emt 00:00:03]} 27. exd4 {[%clk
00:13:43]} {[%emt 00:00:06]} Rfc8 {[%clk 00:05:35]} {[%emt 00:10:47]} 28. Bc3
{[%clk 00:11:53]} {[%emt 00:02:20]} Nf8 {[%clk 00:05:40]} {[%emt 00:00:25]} 29.
Ra7 {[%clk 00:10:12]} {[%emt 00:02:11]} Ne6 {[%clk 00:05:45]} {[%emt 00:00:25]}
30. Rca1 {[%clk 00:08:34]} {[%emt 00:02:09]} Nc7 {[%clk 00:05:12]} {[%emt
00:01:03]} 31. Kf3 {[%clk 00:05:15]} {[%emt 00:03:49]} Nb5 {[%clk 00:05:20]}
{[%emt 00:00:22]} 32. R7a6 {[%clk 00:05:24]} {[%emt 00:00:21]} Kf8 {[%clk
00:04:36]} {[%emt 00:01:14]} 33. Rb6 {[%clk 00:03:51]} {[%emt 00:02:04]} Ke7
{[%clk 00:03:16]} {[%emt 00:01:49]} 34. Rxb8 {[%clk 00:04:13]} {[%emt
00:00:09]} Rxb8 {[%clk 00:03:43]} {[%emt 00:00:04]} 35. Ke3 {[%clk 00:04:28]}
{[%emt 00:00:15]} Kd7 {[%clk 00:02:52]} {[%emt 00:01:20]} 36. Kd3 {[%clk
00:04:03]} {[%emt 00:00:55]} Rb7 {[%clk 00:01:20]} {[%emt 00:02:02]} 37. Ba5
{[%clk 00:01:11]} {[%emt 00:03:21]} Ra7 {[%clk 00:01:26]} {[%emt 00:00:23]} 38.
b3 {[%clk 00:01:08]} {[%emt 00:00:34]} Ra8 {[%clk 00:01:39]} {[%emt 00:00:17]}
39. Ra4 {[%clk 00:00:42]} {[%emt 00:00:56]} Re8 {[%clk 00:01:12]} {[%emt
00:00:57]} 40. Bd2 {[%clk 00:00:54]} {[%emt 00:00:19]} Rb8 {[%clk 00:00:35]}
{[%emt 00:01:07]} 41. Bf4 {[%clk 00:00:41]} {[%emt 00:00:43]} Rb7 {[%clk
00:00:31]} {[%emt 00:00:33]} 42. g4 {[%clk 00:24:26]} {[%emt 00:06:44]} f6
{[%clk 00:22:57]} {[%emt 00:08:04]} 43. h4 {[%clk 00:24:37]} {[%emt 00:00:18]}
g6 {[%clk 00:22:42]} {[%emt 00:00:45]} 44. h5 {[%clk 00:21:59]} {[%emt
00:03:09]} f5 {[%clk 00:12:42]} {[%emt 00:10:30]} 45. gxf5 {[%clk 00:16:53]}
{[%emt 00:05:36]} gxf5 {[%clk 00:13:02]} {[%emt 00:00:10]} 46. Be5 {[%clk
00:16:56]} {[%emt 00:00:27]} Na7 {[%clk 00:11:52]} {[%emt 00:01:41]} 47. Kc3
{[%clk 00:13:10]} {[%emt 00:04:16]} Nc8 {[%clk 00:11:14]} {[%emt 00:01:07]} 48.
Ra1 {[%clk 00:13:17]} {[%emt 00:00:23]} Ke6 {[%clk 00:09:54]} {[%emt 00:01:49]}
49. Rg1 {[%clk 00:11:05]} {[%emt 00:02:42]} Rf7 {[%clk 00:08:10]} {[%emt
00:02:15]} 50. f4 {[%clk 00:04:45]} {[%emt 00:06:51]} Na7 {[%clk 00:04:36]}
{[%emt 00:04:04]} 51. Rg8 {[%clk 00:03:37]} {[%emt 00:01:37]} Nb5+ {[%clk
00:04:19]} {[%emt 00:00:47]} 52. Kb2 {[%clk 00:04:03]} {[%emt 00:00:04]} Kd7
{[%clk 00:02:42]} {[%emt 00:02:06]} 53. Rb8 {[%clk 00:04:15]} {[%emt 00:00:18]}
Re7 {[%clk 00:02:16]} {[%emt 00:00:56]} 54. Rf8 {[%clk 00:04:35]} {[%emt
00:00:09]} 1-0

[Event "Chess Festival Groningen 2023 | A"]
[Site "Groningen, Netherlands"]
[Date "2023.12.23"]
[Round "3.19"]
[White "Kumar, Prajit Sai"]
[Black "Kanyamarala, Tarun"]
[Result "1-0"]
[TimeControl "90min/40moves + 30min + 30sec/move"]
[WhiteElo "2172"]
[BlackElo "2305"]

1. e4 {[%clk 01:30:41]} c5 {[%clk 01:30:50]} {[%emt 00:00:48]} 2. Nf3 {[%clk
01:31:04]} d6 {[%clk 01:31:13]} 3. d4 {[%clk 01:31:17]} cxd4 {[%clk 01:31:35]}
{[%emt 00:00:09]} 4. Nxd4 {[%clk 01:31:41]} Nf6 {[%clk 01:31:53]} {[%emt
00:00:22]} 5. Nc3 {[%clk 01:31:21]} {[%emt 00:00:34]} a6 {[%clk 01:32:02]}
{[%emt 00:00:28]} 6. Bg5 {[%clk 01:29:13]} {[%emt 00:02:31]} Nbd7 {[%clk
01:32:09]} {[%emt 00:00:41]} 7. Bc4 {[%clk 01:26:15]} {[%emt 00:03:09]} Qb6
{[%clk 01:32:09]} {[%emt 00:00:44]} 8. Bb3 {[%clk 01:25:44]} {[%emt 00:00:48]}
e6 {[%clk 01:32:11]} {[%emt 00:00:27]} 9. Qd2 {[%clk 01:24:33]} {[%emt
00:01:50]} Be7 {[%clk 01:31:23]} {[%emt 00:01:08]} 10. O-O-O {[%clk 01:24:23]}
{[%emt 00:00:49]} Nc5 {[%clk 01:30:18]} {[%emt 00:01:28]} 11. f3 {[%clk
01:19:02]} {[%emt 00:05:50]} h5 {[%clk 01:22:23]} {[%emt 00:08:24]} 12. Rhe1
{[%clk 01:05:14]} {[%emt 00:14:19]} Qc7 {[%clk 01:12:14]} {[%emt 00:10:41]} 13.
f4 {[%clk 00:58:38]} {[%emt 00:07:04]} b5 {[%clk 01:04:57]} {[%emt 00:08:24]}
14. e5 {[%clk 00:55:00]} {[%emt 00:03:52]} dxe5 {[%clk 01:04:22]} {[%emt
00:00:43]} 15. fxe5 {[%clk 00:55:16]} {[%emt 00:00:37]} b4 {[%clk 00:58:18]}
{[%emt 00:06:14]} 16. exf6 {[%clk 00:53:48]} {[%emt 00:01:55]} bxc3 {[%clk
00:47:36]} {[%emt 00:11:12]} 17. Qf2 {[%clk 00:49:13]} {[%emt 00:05:05]} Nxb3+
{[%clk 00:31:04]} {[%emt 00:17:01]} 18. Nxb3 {[%clk 00:30:08]} {[%emt
00:19:37]} cxb2+ {[%clk 00:29:19]} {[%emt 00:02:35]} 19. Kb1 {[%clk 00:27:51]}
{[%emt 00:03:01]} gxf6 {[%clk 00:28:36]} {[%emt 00:00:38]} 20. Bxf6 {[%clk
00:28:15]} {[%emt 00:00:34]} Bxf6 {[%clk 00:25:32]} {[%emt 00:03:05]} 21. Qxf6
{[%clk 00:28:39]} {[%emt 00:00:26]} Rg8 {[%clk 00:25:32]} {[%emt 00:00:13]} 22.
Re5 {[%clk 00:23:57]} {[%emt 00:05:08]} Qe7 {[%clk 00:21:30]} {[%emt 00:04:33]}
23. Qf2 {[%clk 00:22:54]} {[%emt 00:01:32]} Bb7 {[%clk 00:18:32]} {[%emt
00:03:28]} 24. Rxh5 {[%clk 00:16:05]} {[%emt 00:07:19]} Rd8 {[%clk 00:18:13]}
{[%emt 00:00:51]} 25. Rg1 {[%clk 00:16:01]} {[%emt 00:00:37]} Bd5 {[%clk
00:15:54]} {[%emt 00:02:54]} 26. Kxb2 {[%clk 00:14:10]} {[%emt 00:02:46]} a5
{[%clk 00:13:46]} {[%emt 00:02:11]} 27. Rh4 {[%clk 00:13:08]} {[%emt 00:01:25]}
Rc8 {[%clk 00:11:02]} {[%emt 00:03:14]} 28. g3 {[%clk 00:12:11]} {[%emt
00:01:27]} Qc7 {[%clk 00:08:03]} {[%emt 00:03:49]} 29. Qd2 {[%clk 00:10:45]}
{[%emt 00:01:35]} Qe5+ {[%clk 00:07:00]} {[%emt 00:02:17]} 30. Qd4 {[%clk
00:10:35]} Qe2 {[%clk 00:06:31]} {[%emt 00:01:27]} 31. Qd2 {[%clk 00:10:05]}
{[%emt 00:00:28]} Qe5+ {[%clk 00:06:32]} {[%emt 00:00:52]} 32. Qd4 {[%clk
00:10:30]} Qf5 {[%clk 00:04:59]} {[%emt 00:02:04]} 33. Qa4+ {[%clk 00:09:43]}
{[%emt 00:01:40]} Kf8 {[%clk 00:04:34]} {[%emt 00:00:21]} 34. Rc1 {[%clk
00:09:47]} {[%emt 00:00:18]} Qe5+ {[%clk 00:03:55]} {[%emt 00:01:34]} 35. Kb1
{[%clk 00:09:10]} {[%emt 00:00:43]} Rg5 {[%clk 00:01:01]} {[%emt 00:03:24]} 36.
Qd7 {[%clk 00:05:37]} {[%emt 00:04:24]} Ra8 {[%clk 00:00:35]} {[%emt 00:00:35]}
37. Rf1 {[%clk 00:04:05]} {[%emt 00:02:22]} Rf5 {[%clk 00:00:58]} 38. Rxf5
{[%clk 00:04:13]} {[%emt 00:00:10]} exf5 {[%clk 00:01:12]} {[%emt 00:00:27]} 39.
Rd4 {[%clk 00:03:37]} {[%emt 00:00:52]} Qe1+ {[%clk 00:00:58]} {[%emt
00:00:54]} 40. Kb2 {[%clk 00:03:29]} {[%emt 00:00:30]} a4 {[%clk 00:01:22]}
{[%emt 00:00:05]} 41. Rxa4 {[%clk 00:02:25]} {[%emt 00:01:40]} Qe5+ {[%clk
00:29:01]} {[%emt 00:02:46]} 42. Ka3 {[%clk 00:30:54]} {[%emt 00:02:01]} Rb8
{[%clk 00:28:03]} {[%emt 00:01:47]} 43. Ra5 {[%clk 00:29:46]} {[%emt 00:01:18]}
1-0